fUSD/lending_fUSD_20260421
["ID","MTS","AMOUNT","RATE_DAILY","PERIOD"]
[420923095,1776732632810,-2349.21,0.00011636,2]
[420923096,1776732632820,-996.0,0.00011826,2]
[420923097,1776732632829,-600.0,0.00011869,2]
[420923098,1776732632838,-195.0,0.00011869,2]
[420923099,1776732632848,-195.0,0.0001193,2]
[420923100,1776732632860,-600.0,0.0001193,2]
[420923101,1776732632870,-2945.05,0.00011942,2]
[420923102,1776732632881,-1000.0,0.00012,2]
[420923103,1776732632891,-1000.0,0.00012,2]
[420923104,1776732632901,-1000.0,0.00012,2]
[420923105,1776732632911,-5782.79,0.00012026,2]
[420923106,1776732632921,-420.0,0.00012062,2]
[420923107,1776732632930,-2000.0,0.00012064,2]
[420923108,1776732632939,-600.0,0.00012098,2]
[420923109,1776732632949,-25123.6612,0.00012761,2]
[420923110,1776732632958,-2048.75739452,0.00012951,2]
[420923111,1776732632968,-250.0,0.00013,2]
[420923112,1776732632977,-175.74228757,0.00013008,2]
[420923113,1776732632986,-500.0,0.00013067,2]
[420923114,1776732632995,-2525.59255065,0.00013136,2]
[420923115,1776732633005,-2000.0,0.00013572,2]
[420923116,1776732633014,-1000.0,0.000136,2]
[420923117,1776732633024,-1000.0,0.000136,3]
[420923118,1776732633033,-500.0,0.00013698,2]
[420923119,1776732633042,-500.0,0.00013698,2]
[420923120,1776732633051,-500.0,0.00013698,2]
[420923121,1776732633060,-500.0,0.00013698,2]
[420923122,1776732633070,-500.0,0.00013698,2]
[420923123,1776732633079,-500.0,0.00013698,2]
[420923124,1776732633089,-500.0,0.00013698,2]
[420923125,1776732633098,-500.0,0.00013698,2]
[420923126,1776732633107,-1337.18,0.00013698,2]
[420923127,1776732633116,-1337.18,0.00013698,2]
[420923128,1776732633126,-1337.18,0.00013698,2]
[420923129,1776732633135,-500.0,0.00013698,2]
[420923130,1776732633144,-500.0,0.00013698,2]
[420923131,1776732633154,-500.0,0.00013698,2]
[420923132,1776732633163,-500.0,0.00013698,2]
[420923133,1776732633173,-500.0,0.00013698,2]
[420923134,1776732633182,-500.0,0.00013698,2]
[420923135,1776732633191,-500.0,0.00013698,2]
[420923136,1776732633201,-200.0,0.00013699,2]
[420923137,1776732633211,-505.0,0.0001372,2]
[420923138,1776732633220,-502.40033275,0.00013875,2]
[420923139,1776732633230,-8622.66589096,0.00014011,2]
[420923140,1776732633626,-500.0,0.00014167,2]
[420923141,1776732633636,-150.0,0.00014209,2]
[420923142,1776732633646,-1337.18,0.00014296,2]
[420923143,1776732633655,-498.09,0.000145,2]
[420923144,1776732633665,-160.0,0.00014587,2]
[420923145,1776732633675,-562.81492935,0.000147,2]
[420923146,1776732633684,-2048.75739452,0.00014779,2]
[420923147,1776732633694,-1000.0,0.000148,4]
[420923148,1776732633704,-300.0,0.00015,2]
[420923149,1776732633714,-2000.0,0.0001508,2]
[420923150,1776732633723,-152.95454704,0.00015236,2]
[420923151,1776732633738,-274.44,0.00015248,2]
[420923152,1776732633748,-1834.77,0.00015507,2]
[420923153,1776732633757,-175.74228754,0.00015618,2]
[420923154,1776732633767,-1000.0,0.000158,5]
[420923155,1776732633776,-94.09252892,0.0001589,2]
[420923156,1776732633790,-1905.90747108,0.0001589,2]
[420923157,1776732633799,-1834.77,0.00015895,2]
[420923158,1776732633809,-2500.0,0.000159,5]
[420923159,1776732633818,-505.0,0.00016087,4]
[420923160,1776732633828,-1337.18,0.00016261,2]
[420923161,1776732633838,-150.0,0.00016262,2]
[420923162,1776732633847,-150.0,0.00016262,2]
[420923163,1776732633856,-150.0,0.00016262,2]
[420923164,1776732633865,-215.90236649,0.00016262,2]
[420923165,1776732633875,-500.0,0.00016262,2]
[420923166,1776732633885,-251.43631384,0.00016262,2]
[420923167,1776732633894,-500.0,0.00016262,2]
[420923168,1776732633905,-500.0,0.00016262,2]
[420923169,1776732633914,-500.0,0.00016262,2]
[420923170,1776732633924,-500.0,0.00016262,2]
[420923171,1776732633933,-500.0,0.00016262,2]
[420923172,1776732633942,-500.0,0.00016262,2]
[420923173,1776732633952,-500.0,0.00016262,2]
[420923174,1776732633962,-500.0,0.00016262,2]
[420923175,1776732633972,-500.0,0.00016262,2]
[420923176,1776732633981,-500.0,0.00016262,2]
[420923177,1776732633991,-500.0,0.00016262,2]
[420923178,1776732634000,-500.0,0.00016262,2]
[420923179,1776732634010,-500.0,0.00016262,2]
[420923180,1776732634019,-500.0,0.00016262,2]
[420923181,1776732634029,-500.0,0.00016262,2]
[420923182,1776732634039,-500.0,0.00016262,2]
[420923183,1776732634048,-500.0,0.00016262,2]
[420923184,1776732634058,-500.0,0.00016262,2]
[420923185,1776732634067,-500.0,0.00016262,2]
[420923186,1776732634077,-500.0,0.00016262,2]
[420923187,1776732634087,-500.0,0.00016262,2]
[420923188,1776732634096,-500.0,0.00016262,2]
[420923189,1776732634107,-500.0,0.00016262,2]
[420923190,1776732634121,-500.0,0.00016262,2]
[420923191,1776732634130,-500.0,0.00016262,2]
[420923192,1776732634140,-500.0,0.00016262,2]
[420923193,1776732634150,-43.37582846,0.00016262,2]
[420923200,1776732638207,-456.62417154,0.00016262,2]
[420923201,1776732638217,-219.22805328,0.00016262,2]
[420923202,1776732638229,-72.00938866,0.00016262,2]
[420923203,1776732638238,-500.0,0.00016262,2]
[420923204,1776732638247,-384.78133022,0.00016262,2]
[420923205,1776732638259,-115.21866978,0.00016262,2]
[420923206,1776732638268,-342.83457186,0.00016262,2]
[420923207,1776732638419,-157.16542814,0.00016262,2]
[420923208,1776732638429,-591.74409425,0.00016262,2]
[420923209,1776732638438,-150.0,0.00016262,2]
[420923210,1776732638448,-150.0,0.00016262,2]
[420923211,1776732638457,-178.88867744,0.00016262,2]
[420923212,1776732638467,-500.0,0.00016262,2]
[420923213,1776732638476,-500.0,0.00016262,2]
[420923214,1776732638486,-500.0,0.00016262,2]
[420923215,1776732638496,-500.0,0.00016262,2]
[420923216,1776732638505,-500.0,0.00016262,2]
[420923217,1776732638514,-500.0,0.00016262,2]
[420923218,1776732638523,-500.0,0.00016262,2]
[420923220,1776732638532,-500.0,0.00016262,2]
[420923222,1776732638541,-500.0,0.00016262,2]
[420923223,1776732638550,-500.0,0.00016262,2]
[420923224,1776732638559,-500.0,0.00016262,2]
[420923225,1776732638568,-500.0,0.00016262,2]
[420923226,1776732638577,-500.0,0.00016262,2]
[420923228,1776732638586,-500.0,0.00016262,2]
[420923230,1776732638595,-500.0,0.00016262,2]
[420923232,1776732638604,-500.0,0.00016262,2]
[420923234,1776732638614,-500.0,0.00016262,2]
[420923236,1776732638623,-500.0,0.00016262,2]
[420923238,1776732638632,-500.0,0.00016262,2]
[420923240,1776732638641,-500.0,0.00016262,2]
[420923242,1776732638650,-500.0,0.00016262,2]
[420923244,1776732638659,-500.0,0.00016262,2]
[420923246,1776732638668,-500.0,0.00016262,2]
[420923248,1776732638677,-500.0,0.00016262,2]
[420923250,1776732638686,-500.0,0.00016262,2]
[420923252,1776732638695,-500.0,0.00016262,2]
[420923254,1776732638704,-500.0,0.00016262,2]
[420923256,1776732638714,-500.0,0.00016262,2]
[420923259,1776732638723,-500.0,0.00016262,2]
[420923261,1776732638733,-500.0,0.00016262,2]
[420923262,1776732638742,-500.0,0.00016262,2]
[420923264,1776732638751,-500.0,0.00016262,2]
[420923265,1776732638760,-500.0,0.00016262,2]
[420923266,1776732638769,-500.0,0.00016262,2]
[420923267,1776732638778,-500.0,0.00016262,2]
[420923268,1776732638787,-500.0,0.00016262,2]
[420923269,1776732638796,-500.0,0.00016262,2]
[420923270,1776732638805,-500.0,0.00016262,2]
[420923271,1776732638815,-318.08398124,0.00016262,2]
[420923272,1776732638825,-500.0,0.00016262,2]
[420923273,1776732638835,-150.0,0.00016262,2]
[420923274,1776732638844,-170.10723715,0.00016262,2]
[420923275,1776732638853,-500.0,0.00016262,2]
[420923276,1776732638863,-500.0,0.00016262,2]
[420923277,1776732638872,-500.0,0.00016262,2]
[420923278,1776732638881,-500.0,0.00016262,2]
[420923279,1776732638890,-500.0,0.00016262,2]
[420923280,1776732638899,-150.0,0.00016262,2]
[420923281,1776732638909,-500.0,0.00016262,2]
[420923282,1776732638923,-500.0,0.00016262,2]
[420923283,1776732638932,-500.0,0.00016262,2]
[420923284,1776732638942,-500.0,0.00016262,2]
[420923285,1776732638951,-718.0,0.00016262,2]
[420923286,1776732638960,-718.0,0.00016262,2]
[420923287,1776732638969,-718.0,0.00016262,2]
[420923288,1776732638979,-718.0,0.00016262,2]
[420923289,1776732638988,-718.0,0.00016262,2]
[420923290,1776732638997,-718.0,0.00016262,2]
[420923291,1776732639007,-660.06034704,0.00016262,2]
[420923292,1776732639019,-57.93965296,0.00016262,2]
[420923293,1776732639028,-553.91165369,0.00016262,2]
[420923294,1776732639040,-164.08834631,0.00016262,2]
[420923295,1776732639049,-718.0,0.00016262,2]
[420923296,1776732639059,-718.0,0.00016262,2]
[420923297,1776732639068,-718.0,0.00016262,2]
[420923298,1776732639077,-718.0,0.00016262,2]
[420923299,1776732639086,-718.0,0.00016262,2]
[420923300,1776732639095,-718.0,0.00016262,2]
[420923301,1776732639104,-718.0,0.00016262,2]
[420923302,1776732639113,-718.0,0.00016262,2]
[420923303,1776732639122,-718.0,0.00016262,2]
[420923304,1776732639131,-718.0,0.00016262,2]
[420923305,1776732639140,-500.0,0.00016262,2]
[420923306,1776732639149,-500.0,0.00016262,2]
[420923307,1776732639158,-500.0,0.00016262,2]
[420923308,1776732639167,-718.0,0.00016262,2]
[420923309,1776732639176,-500.0,0.00016262,2]
[420923310,1776732639185,-235.36257079,0.00016262,2]
[420923311,1776732639193,-718.0,0.00016262,2]
[420923312,1776732639203,-718.0,0.00016262,2]
[420923313,1776732639213,-718.0,0.00016262,2]
[420923314,1776732639222,-150.0,0.00016262,2]
[420923315,1776732639231,-150.0,0.00016262,2]
[420923316,1776732639241,-155.98173,0.00016262,2]
[420923317,1776732639250,-1834.77,0.00016282,2]
[420923318,1776732639259,-2000.0,0.000164,2]
[420923319,1776732639267,-393.15967189,0.00016437,2]
[420923320,1776732639277,-200.0,0.00016437,2]
[420923321,1776732639286,-151.0,0.00016438,2]
[420923322,1776732639295,-151.0,0.00016438,2]
[420923323,1776732639304,-151.0,0.00016438,2]
[420923324,1776732639313,-151.0,0.00016438,2]
[420923325,1776732639322,-547.50777106,0.00016438,2]
[420923326,1776732639331,-547.50777106,0.00016438,2]
[420923327,1776732639340,-547.50777106,0.00016438,2]
[420923328,1776732639349,-547.50777106,0.00016438,2]
[420923329,1776732639358,-547.50777106,0.00016438,2]
[420923330,1776732639367,-547.50777106,0.00016438,2]
[420923331,1776732639376,-547.50777106,0.00016438,2]
[420923332,1776732639385,-547.50777106,0.00016438,2]
[420923333,1776732639394,-547.50777106,0.00016438,2]
[420923334,1776732639403,-547.50777106,0.00016438,2]
[420923335,1776732639412,-547.50777106,0.00016438,2]
[420923336,1776732639421,-547.50777106,0.00016438,2]
[420923337,1776732639430,-547.50777106,0.00016438,2]
[420923338,1776732639439,-547.50777106,0.00016438,2]
[420923339,1776732639448,-547.50777106,0.00016438,2]
[420923340,1776732639458,-547.50777106,0.00016438,2]
[420923341,1776732639467,-547.50777106,0.00016438,2]
[420923342,1776732639477,-547.50777106,0.00016438,2]
[420923343,1776732639485,-547.50777106,0.00016438,2]
[420923344,1776732639494,-547.50777106,0.00016438,2]
[420923345,1776732639504,-547.50777106,0.00016438,2]
[420923346,1776732639513,-547.50777106,0.00016438,2]
[420923347,1776732639522,-547.50777106,0.00016438,2]
[420923348,1776732639531,-547.50777106,0.00016438,2]
[420923349,1776732639540,-547.50777106,0.00016438,2]
[420923350,1776732639549,-547.50777106,0.00016438,2]
[420923351,1776732639558,-547.50777106,0.00016438,2]
[420923352,1776732639567,-547.50777106,0.00016438,2]
[420923353,1776732639576,-547.50777106,0.00016438,2]
[420923354,1776732639585,-547.50777106,0.00016438,2]
[420923355,1776732639594,-547.50777106,0.00016438,2]
[420923356,1776732639603,-547.50777106,0.00016438,2]
[420923357,1776732639612,-547.50777106,0.00016438,2]
[420923358,1776732639621,-547.50777106,0.00016438,2]
[420923359,1776732639631,-547.50777106,0.00016438,2]
[420923360,1776732639639,-547.50777106,0.00016438,2]
[420923361,1776732639649,-547.50777106,0.00016438,2]
[420923362,1776732639658,-547.50777106,0.00016438,2]
[420923363,1776732639668,-547.50777106,0.00016438,2]
[420923364,1776732639677,-547.50777106,0.00016438,2]
[420923365,1776732639686,-547.50777106,0.00016438,2]
[420923366,1776732639695,-547.50777106,0.00016438,2]
[420923367,1776732639704,-547.50777106,0.00016438,2]
[420923368,1776732639714,-547.50777106,0.00016438,2]
[420923369,1776732639723,-547.50777106,0.00016438,2]
[420923370,1776732639733,-547.50777106,0.00016438,2]
[420923371,1776732639742,-547.50777106,0.00016438,2]
[420923372,1776732639751,-547.50777106,0.00016438,2]
[420923373,1776732639761,-547.50777106,0.00016438,2]
[420923374,1776732639771,-547.50777106,0.00016438,2]
[420923375,1776732639780,-547.50777106,0.00016438,2]
[420923376,1776732639789,-547.50777106,0.00016438,2]
[420923377,1776732639799,-547.50777106,0.00016438,2]
[420923378,1776732639808,-547.50777106,0.00016438,2]
[420923379,1776732639818,-547.50777106,0.00016438,2]
[420923380,1776732639827,-547.50777106,0.00016438,2]
[420923381,1776732639836,-5988.30873468,0.00016438,2]
[420923382,1776732639845,-5988.30873468,0.00016438,2]
[420923383,1776732639854,-5988.30873468,0.00016438,2]
[420923384,1776732639864,-5988.30873468,0.00016438,2]
[420923385,1776732639873,-3196.33150861,0.00016438,2]
[420923386,1776732639886,-2791.97722607,0.00016438,2]
[420923387,1776732639895,-5988.30873468,0.00016438,2]
[420923388,1776732639904,-5988.30873468,0.00016438,2]
[420923389,1776732639914,-5988.30873468,0.00016438,2]
[420923390,1776732639923,-5988.30873468,0.00016438,2]
[420923391,1776732639932,-5988.30873468,0.00016438,2]
[420923392,1776732639942,-5988.30873468,0.00016438,2]
[420923393,1776732639951,-5988.30873468,0.00016438,2]
[420923394,1776732639960,-4283.34596084,0.00016438,2]
[420923395,1776732639972,-1704.96277384,0.00016438,2]
[420923396,1776732639981,-121.17588776,0.00016438,2]
[420923398,1776732640571,-169.6365124,0.00011124,2]
[420923399,1776732640581,-718.0,0.00016262,2]
[420923400,1776732640590,-3272.3018229,0.00016438,2]
[420923404,1776732643163,-732.14193434,0.00016262,2]
[420923405,1776732643173,-2594.83102402,0.00016438,2]
[420923406,1776732643183,-1794.9356331,0.00016438,2]
[420923407,1776732643195,-4193.37310158,0.00016438,2]
[420923408,1776732643204,-5988.30873468,0.00016438,2]
[420923409,1776732643214,-5988.30873468,0.00016438,2]
[420923410,1776732643223,-5988.30873468,0.00016438,2]
[420923411,1776732643233,-5988.30873468,0.00016438,2]
[420923412,1776732643242,-5988.30873468,0.00016438,2]
[420923413,1776732643252,-5988.30873468,0.00016438,2]
[420923414,1776732643262,-614.44039333,0.00016438,2]
[420923415,1776732643332,-1054.0,0.00016438,2]
[420923416,1776732643355,-307.90587514,0.00016438,2]
[420923417,1776732643367,-4011.96246621,0.00016438,2]
[420923418,1776732643377,-5528.03753381,0.00016438,2]
[420923443,1776732646007,-460.27120087,0.00016438,2]
[420923444,1776732646017,-5143.47879913,0.00016438,2]
[420923445,1776732646063,-844.82993555,0.00016438,2]
[420923446,1776732646073,-1641.12083088,0.00016438,2]
[420923447,1776732646085,-1009.25,0.00016438,2]
[420923456,1776733061122,10000.0,8.222e-05,2]
[420923457,1776733087453,0.01,7.945e-05,2]
[420923458,1776733087477,10000.0,7.945e-05,2]
[420923459,1776733150814,0.01,7.945e-05,2]
[420923460,1776733150836,10000.0,7.945e-05,2]
[420923461,1776733207675,9929.718197,7.945e-05,2]
[420923462,1776733223395,70.291803,8.222e-05,2]
[420923463,1776733223419,6699.708197,8.222e-05,2]
[420923465,1776733268148,153.719396,7.945e-05,2]
[420923647,1776733832557,-150.0,8.75e-05,2]
[420923648,1776733832567,-150.0,8.93e-05,2]
[420923649,1776733832576,-150.0,9.155e-05,2]
[420923650,1776733832586,-112.38439883,9.202e-05,2]
[420923651,1776733832598,-65.69560117,9.202e-05,2]
[420923652,1776733832608,-150.0,9.369e-05,2]
[420923653,1776733832619,-150.0,9.53e-05,2]
[420923654,1776733832629,-150.0,9.768e-05,2]
[420923655,1776733832639,-150.0,0.0001011,2]
[420923656,1776733832650,-178.01,0.00010339,2]
[420923658,1776733832660,-150.0,0.00010417,2]
[420923660,1776733832670,-200.0,0.00010694,2]
[420923661,1776733832680,-300.0,0.00010699,2]
[420923663,1776733832690,-1200.0,0.00010699,2]
[420923665,1776733832699,-19512.08797171,0.000107,2]
[420923666,1776733832708,-1528.66,0.00010744,2]
[420923667,1776733832718,-1218.74,0.00010744,2]
[420923668,1776733832728,-1599.32,0.0001083,2]
[420923670,1776733832737,-162.7505,0.00010937,2]
[420923671,1776733832747,-500.0,0.00010959,2]
[420923673,1776733832756,-150.0,0.00010959,2]
[420923675,1776733832765,-180.6946,0.00010999,2]
[420923676,1776733832775,-1023.251,0.00011023,2]
[420923677,1776733832784,-2500.0,0.00011023,2]
[420923678,1776733832793,-201.93984556,0.00011099,2]
[420923680,1776733832803,-150.0,0.00011123,2]
[420923681,1776733832812,-1000.0,0.00011124,2]
[420923682,1776733832821,-168.01258031,0.000112,2]
[420923683,1776733832830,-152.0,0.00011501,7]
[420923684,1776733832839,-152.0,0.00011512,7]
[420923685,1776733832849,-152.0,0.00011512,7]
[420923686,1776733832858,-420.0,0.00011761,2]
[420923687,1776733832868,-1680.0,0.00011769,2]
[420923688,1776733832877,-395.8,0.00011803,2]
[420923689,1776733832887,-1000.0,0.000119,4]
[420923690,1776733832897,-151.0,0.00011923,2]
[420923691,1776733832906,-151.0,0.00011923,2]
[420923692,1776733832915,-500.0,0.00011942,2]
[420923693,1776733832925,-1500.0,0.00011942,2]
[420923694,1776733832934,-151.0,0.00011985,2]
[420923695,1776733832944,-151.0,0.00011985,2]
[420923696,1776733832954,-125967.8909225,0.00012,2]
[420923697,1776733832963,-150.0,0.00012012,2]
[420923698,1776733832972,-255.0,0.00012169,2]
[420923699,1776733832982,-201.93984555,0.00012863,2]
[420923700,1776733832992,-587.0,0.00012928,2]
[420923701,1776733833002,-2351.0,0.00012946,2]
[420923702,1776733833011,-5660.18179324,0.00013,2]
[420923703,1776733833021,-8125.80657817,0.00013,5]
[420923704,1776733833030,-5398.81254132,0.0001305,2]
[420923705,1776733833040,-433.0,0.00013314,2]
[420923706,1776733833049,-5387.0,0.000136,3]
[420923707,1776733833059,-500.0,0.00013698,2]
[420923708,1776733833068,-393.15967189,0.00013698,2]
[420923709,1776733833078,-308.88171125,0.00013698,2]
[420923710,1776733833087,-500.0,0.00013698,2]
[420923711,1776733833097,-500.0,0.00013698,2]
[420923712,1776733833106,-505.0,0.0001372,2]
[420923713,1776733833115,-5530.0,0.000142,5]
[420923714,1776733833126,-823.0,0.0001421,2]
[420923715,1776733833135,-2579.0,0.0001424,2]
[420923716,1776733833144,-201.93984555,0.00014701,2]
[420923717,1776733833154,-150.0,0.00014882,2]
[420923718,1776733833163,-1000.0,0.00015068,2]
[420923719,1776733833173,-1000.0,0.00015068,2]
[420923720,1776733833182,-1000.0,0.00015068,2]
[420923721,1776733833191,-1000.0,0.00015068,2]
[420923722,1776733833201,-1000.0,0.00015068,2]
[420923723,1776733833210,-1000.0,0.00015068,2]
[420923724,1776733833219,-1000.0,0.00015068,2]
[420923725,1776733833229,-1000.0,0.00015068,2]
[420923726,1776733833238,-1000.0,0.00015068,2]
[420923727,1776733833247,-1000.0,0.00015068,2]
[420923728,1776733833257,-1000.0,0.00015068,2]
[420923729,1776733833267,-539.329844,0.00015068,2]
[420923730,1776733833276,-178.01,0.00015508,2]
[420923731,1776733833285,-200.0,0.00015976,2]
[420923732,1776733833295,-1600.0,0.00015976,2]
[420923733,1776733833304,-501.24,0.00016077,2]
[420923734,1776733833314,-1852.42,0.0001612,2]
[420923735,1776733833323,-2000.0,0.00016189,2]
[420923736,1776733833332,-395.8,0.00016242,2]
[420923737,1776733833342,-150.0,0.00016262,2]
[420923738,1776733833351,-150.0,0.00016262,2]
[420923739,1776733833360,-155.98173,0.00016262,2]
[420923740,1776733833370,-425.0,0.00016262,2]
[420923741,1776733833380,-425.0,0.00016262,2]
[420923742,1776733833390,-500.0,0.00016262,2]
[420923743,1776733833399,-425.0,0.00016262,2]
[420923744,1776733833409,-500.0,0.00016262,2]
[420923745,1776733833418,-425.0,0.00016262,2]
[420923746,1776733833428,-500.0,0.00016262,2]
[420923747,1776733833437,-425.0,0.00016262,2]
[420923748,1776733833446,-500.0,0.00016262,2]
[420923749,1776733833456,-425.0,0.00016262,2]
[420923750,1776733833466,-235.36257079,0.00016262,2]
[420923751,1776733833475,-425.0,0.00016262,2]
[420923752,1776733833484,-425.0,0.00016262,2]
[420923753,1776733833494,-425.0,0.00016262,2]
[420923754,1776733833503,-425.0,0.00016262,2]
[420923755,1776733833512,-425.0,0.00016262,2]
[420923756,1776733833522,-334.09640138,0.00016262,2]
[420923757,1776733833535,-90.90359862,0.00016262,2]
[420923758,1776733833545,-425.0,0.00016262,2]
[420923759,1776733833554,-425.0,0.00016262,2]
[420923760,1776733833563,-425.0,0.00016262,2]
[420923761,1776733833573,-425.0,0.00016262,2]
[420923762,1776733833583,-425.0,0.00016262,2]
[420923763,1776733833592,-425.0,0.00016262,2]
[420923764,1776733833601,-425.0,0.00016262,2]
[420923765,1776733833611,-425.0,0.00016262,2]
[420923766,1776733833620,-425.0,0.00016262,2]
[420923767,1776733833630,-425.0,0.00016262,2]
[420923768,1776733833639,-425.0,0.00016262,2]
[420923769,1776733833649,-441.08834631,0.00016262,2]
[420923770,1776733833658,-505.0,0.00016269,4]
[420923771,1776733833667,-6127.74000747,0.0001628,2]
[420923772,1776733833677,-169.63651239,0.0001633,2]
[420923773,1776733833686,-5618.55321629,0.00016335,2]
[420923774,1776733833695,-150.0,0.00016338,2]
[420923775,1776733833704,-501.24,0.00016351,2]
[420923776,1776733833714,-160.0,0.000164,2]
[420923777,1776733833723,-160.0,0.000164,2]
[420923778,1776733833732,-2000.0,0.000164,2]
[420923779,1776733833742,-159.0,0.000164,2]
[420923780,1776733833751,-1000.0,0.000164,2]
[420923781,1776733833760,-10159.49613556,0.0001643,2]
[420923786,1776733838644,-188.38,0.00015157,2]
[420923787,1776733838654,-1924.57628529,0.0001643,2]
[420923788,1776733838822,-23870.45735515,0.0001643,2]
[420923790,1776733838831,-151.0,0.0001643,2]
[420923792,1776733838840,-3140.6083908,0.0001643,2]
[420923794,1776733838849,-151.0,0.0001643,2]
[420923796,1776733838859,-151.0,0.0001643,2]
[420923798,1776733838868,-151.0,0.0001643,2]
[420923801,1776733838878,-151.0,0.0001643,2]
[420923802,1776733838887,-151.0,0.0001643,2]
[420923804,1776733838896,-47832.3879784,0.0001643,2]
[420923807,1776733838908,-46558.1132826,0.0001643,2]
[420923809,1776733838917,-151.0,0.0001643,2]
[420923811,1776733838927,-151.0,0.0001643,2]
[420923813,1776733838937,-369.3819426,0.0001643,2]
[420923815,1776733838946,-183.63614657,0.00016438,2]
[420923817,1776733838956,-151.0,0.00016438,2]
[420923819,1776733838965,-151.0,0.00016438,2]
[420923821,1776733838974,-151.0,0.00016438,2]
[420923823,1776733838984,-151.0,0.00016438,2]
[420923825,1776733838993,-165.26815384,0.000165,2]
[420923827,1776733839002,-500.0,0.000165,2]
[420923829,1776733839011,-311.08480406,0.000165,2]
[420923831,1776733839024,-188.91519594,0.000165,2]
[420923833,1776733839033,-500.0,0.000165,2]
[420923835,1776733839042,-500.0,0.000165,2]
[420923837,1776733839052,-500.0,0.000165,2]
[420923839,1776733839061,-137.22346566,0.000165,2]
[420923847,1776733841932,-251.17,0.00015752,2]
[420923848,1776733841943,-362.77653434,0.000165,2]
[420923849,1776733841953,-202.75326216,0.000165,2]
[420923850,1776733841964,-297.24673784,0.000165,2]
[420923851,1776733841974,-500.0,0.000165,2]
[420923852,1776733841983,-500.0,0.000165,2]
[420923853,1776733841993,-500.0,0.000165,2]
[420923854,1776733842002,-221.0,0.00016539,5]
[420923855,1776733842012,-201.93984555,0.0001654,2]
[420923856,1776733842022,-975.81786294,0.00016569,2]
[420923857,1776733842031,-2000.0,0.00016589,2]
[420923858,1776733842041,-501.24,0.00016625,2]
[420923859,1776733842051,-1834.77,0.0001667,2]
[420923860,1776733842061,-500.0,0.00017048,2]
[420923861,1776733842070,-171.93182394,0.00017048,2]
[420923862,1776733842080,-500.0,0.00017048,2]
[420923863,1776733842090,-500.0,0.00017048,2]
[420923864,1776733842099,-1000.0,0.00017048,2]
[420923865,1776733842109,-639.73715824,0.00017048,2]
[420923866,1776733842119,-1834.77,0.00017058,2]
[420923867,1776733842129,-5618.55321622,0.00017583,2]
[420923868,1776733842138,-1000.0,0.00017596,2]
[420923869,1776733842148,-151.0,0.00017626,2]
[420923870,1776733842157,-1549.2052231,0.00017683,31]
[420923871,1776733842167,-160.0,0.000179,2]
[420923872,1776733842177,-160.0,0.000179,3]
[420923873,1776733842186,-160.0,0.000179,3]
[420923874,1776733842196,-175.74228754,0.00017904,2]
[420923875,1776733842206,-1600.0,0.00017973,2]
[420923876,1776733842215,-1885.1,0.00017992,2]
[420923877,1776733842225,-209.40437684,0.00018004,2]
[420923878,1776733842234,-200.0,0.00018004,2]
[420923879,1776733842244,-500.0,0.00018004,2]
[420923880,1776733842254,-1428.38747117,0.00018004,2]
[420923881,1776733842264,-151.0,0.00018004,2]
[420923882,1776733842274,-209.40437684,0.00018004,2]
[420923883,1776733842283,-385.43947026,0.00018004,2]
[420923884,1776733842293,-2000.0,0.00018097,2]